fUSD/lending_fUSD_20240502
["ID","MTS","AMOUNT","RATE_DAILY","PERIOD"]
[325259232,1714667466748,-500.0,0.00036438,7]
[325259233,1714667466758,-500.0,0.00036438,7]
[325259234,1714667466768,-500.0,0.00036438,7]
[325259235,1714667466777,-512.83241942,0.00036438,7]
[325259236,1714667466787,-500.0,0.00036438,7]
[325259237,1714667466797,-500.0,0.00036438,7]
[325259238,1714667466807,-508.09027157,0.00036438,7]
[325259239,1714667466818,-500.0,0.00036438,7]
[325259240,1714667466827,-500.0,0.00036438,7]
[325259241,1714667466837,-500.0,0.00036438,7]
[325259242,1714667466847,-506.46378973,0.00036438,7]
[325259243,1714667466856,-500.0,0.00036438,7]
[325259244,1714667466866,-500.0,0.00036438,7]
[325259245,1714667466875,-500.0,0.00036438,7]
[325259246,1714667466886,-1507.76,0.00036438,7]
[325259247,1714667466896,-500.0,0.00036438,7]
[325259248,1714667466906,-1246.39,0.00036438,7]
[325259249,1714667466916,-500.0,0.00036438,7]
[325259250,1714667466925,-877.28,0.00036438,7]
[325259251,1714667466934,-589.6,0.00036438,7]
[325259252,1714667466943,-500.0,0.00036438,7]
[325259253,1714667466953,-500.0,0.00036438,7]
[325259254,1714667466963,-500.0,0.00036438,7]
[325259255,1714667466972,-500.0,0.00036438,7]
[325259256,1714667466982,-500.0,0.00036438,7]
[325259257,1714667466992,-500.0,0.00036438,7]
[325259258,1714667467002,-500.0,0.00036438,7]
[325259259,1714667467011,-500.0,0.00036438,7]
[325259260,1714667467023,-500.0,0.00036438,7]
[325259261,1714667467033,-500.0,0.00036438,7]
[325259262,1714667467042,-1072.14,0.00036438,7]
[325259263,1714667467051,-791.16,0.00036438,7]
[325259264,1714667467060,-500.0,0.00036438,7]
[325259265,1714667467070,-500.0,0.00036438,7]
[325259266,1714667467080,-500.0,0.00036438,7]
[325259267,1714667467090,-500.0,0.00036438,7]
[325259268,1714667467099,-500.0,0.00036438,7]
[325259269,1714667467108,-661.54,0.00036438,7]
[325259270,1714667467117,-500.0,0.00036438,7]
[325259271,1714667467127,-500.0,0.00036438,7]
[325259272,1714667467137,-1838.42,0.00036438,7]
[325259273,1714667467147,-569.75,0.00036438,7]
[325259274,1714667467156,-500.0,0.00036438,7]
[325259275,1714667467166,-500.0,0.00036438,7]
[325259276,1714667467176,-500.0,0.00036438,7]
[325259277,1714667467186,-500.0,0.00036438,7]
[325259278,1714667467195,-500.0,0.00036438,7]
[325259279,1714667467204,-736.8,0.00036438,7]
[325259280,1714667467213,-500.0,0.00036438,7]
[325259281,1714667467222,-500.0,0.00036438,7]
[325259282,1714667467231,-500.0,0.00036438,7]
[325259283,1714667467240,-814.06,0.00036438,7]
[325259284,1714667467251,-500.0,0.00036438,7]
[325259285,1714667467263,-500.0,0.00036438,7]
[325259286,1714667467273,-621.37,0.00036438,7]
[325259287,1714667467282,-508.56765343,0.00036438,7]
[325259288,1714667467291,-2397.54,0.00036438,7]
[325259289,1714667467301,-500.0,0.00036438,7]
[325259290,1714667467310,-500.0,0.00036438,7]
[325259291,1714667467319,-500.0,0.00036438,7]
[325259292,1714667467328,-500.0,0.00036438,7]
[325259293,1714667467340,-510.03079849,0.00036438,7]
[325259294,1714667467349,-500.0,0.00036438,7]
[325259295,1714667467358,-725.44,0.00036438,7]
[325259296,1714667467368,-500.0,0.00036438,7]
[325259297,1714667467378,-500.0,0.00036438,7]
[325259298,1714667467389,-651.96,0.00036438,7]
[325259299,1714667467398,-774.58,0.00036438,7]
[325259300,1714667467408,-500.0,0.00036438,7]
[325259301,1714667467417,-500.0,0.00036438,7]
[325259302,1714667467426,-500.0,0.00036438,7]
[325259303,1714667467436,-174.8343141,0.00036438,7]
[325259304,1714667467445,-500.0,0.00036438,7]
[325259305,1714667467454,-500.0,0.00036438,7]
[325259306,1714667467464,-500.0,0.00036438,7]
[325259307,1714667467473,-500.0,0.00036438,7]
[325259308,1714667467483,-500.0,0.00036438,7]
[325259309,1714667467492,-500.0,0.00036438,7]
[325259310,1714667467502,-500.0,0.00036438,7]
[325259311,1714667467512,-721.63,0.00036438,7]
[325259312,1714667467521,-528.7994669,0.00036438,7]
[325259313,1714667467530,-333.64138522,0.00036438,7]
[325259314,1714667467541,-507.3,0.00036438,7]
[325259315,1714667467551,-508.31,0.00036438,7]
[325259316,1714667467560,-517.85,0.00036438,7]
[325259317,1714667467570,-500.0,0.00036438,7]
[325259318,1714667467579,-500.0,0.00036438,7]
[325259319,1714667467588,-500.0,0.00036438,7]
[325259320,1714667467598,-195.69727738,0.00036438,7]
[325259321,1714667467608,-500.0,0.00036438,7]
[325259322,1714667467618,-500.0,0.00036438,7]
[325259323,1714667467627,-500.0,0.00036438,7]
[325259324,1714667467638,-500.0,0.00036438,7]
[325259325,1714667467648,-1044.29,0.00036438,7]
[325259326,1714667467657,-1010.52,0.00036438,7]
[325259327,1714667467666,-685.16,0.00036438,7]
[325259328,1714667467675,-507.81680772,0.00036438,7]
[325259329,1714667467685,-500.0,0.00036438,7]
[325259330,1714667467694,-500.0,0.00036438,7]
[325259331,1714667467704,-500.0,0.00036438,7]
[325259332,1714667467714,-500.0,0.00036438,7]
[325259333,1714667467724,-500.0,0.00036438,7]
[325259334,1714667467734,-647.62371787,0.00036438,7]
[325259335,1714667467743,-500.0,0.00036438,7]
[325259336,1714667467753,-1645.41,0.00036438,7]
[325259337,1714667467762,-163.92093013,0.00036438,7]
[325259338,1714667467772,-500.0,0.00036438,7]
[325259339,1714667467781,-500.0,0.00036438,7]
[325259340,1714667467790,-500.0,0.00036438,7]
[325259341,1714667467799,-500.0,0.00036438,7]
[325259342,1714667467809,-500.0,0.00036438,7]
[325259343,1714667467819,-500.0,0.00036438,7]
[325259344,1714667467829,-500.0,0.00036438,7]
[325259345,1714667467839,-500.0,0.00036438,7]
[325259346,1714667467849,-865.67,0.00036438,7]
[325259347,1714667467859,-769.46,0.00036438,7]
[325259348,1714667467868,-500.0,0.00036438,7]
[325259349,1714667467878,-500.0,0.00036438,7]
[325259350,1714667467888,-500.0,0.00036438,7]
[325259351,1714667467898,-500.0,0.00036438,7]
[325259352,1714667467907,-795.0,0.00036438,7]
[325259353,1714667467917,-684.72,0.00036438,7]
[325259354,1714667467926,-500.0,0.00036438,7]
[325259355,1714667467936,-500.0,0.00036438,7]
[325259356,1714667467945,-500.0,0.00036438,7]
[325259357,1714667467954,-500.0,0.00036438,7]
[325259358,1714667467963,-500.0,0.00036438,7]
[325259359,1714667467973,-500.0,0.00036438,7]
[325259360,1714667467982,-500.0,0.00036438,7]
[325259361,1714667467991,-500.0,0.00036438,7]
[325259362,1714667468001,-813.33,0.00036438,7]
[325259363,1714667468012,-500.0,0.00036438,7]
[325259364,1714667468021,-500.0,0.00036438,7]
[325259365,1714667468031,-500.0,0.00036438,7]
[325259366,1714667468040,-500.0,0.00036438,7]
[325259367,1714667468050,-500.0,0.00036438,7]
[325259368,1714667468059,-500.0,0.00036438,7]
[325259369,1714667468069,-500.0,0.00036438,7]
[325259370,1714667468078,-500.0,0.00036438,7]
[325259371,1714667468088,-634.73,0.00036438,7]
[325259372,1714667468097,-500.0,0.00036438,7]
[325259373,1714667468107,-851.99,0.00036438,7]
[325259374,1714667468116,-500.0,0.00036438,7]
[325259375,1714667468126,-500.0,0.00036438,7]
[325259376,1714667468135,-506.45834501,0.00036438,7]
[325259377,1714667468148,-905.06,0.00036438,7]
[325259378,1714667468157,-868.62,0.00036438,7]
[325259379,1714667468166,-500.0,0.00036438,7]
[325259380,1714667468176,-500.0,0.00036438,7]
[325259381,1714667468186,-500.0,0.00036438,7]
[325259382,1714667468195,-500.0,0.00036438,7]
[325259383,1714667468204,-500.0,0.00036438,7]
[325259384,1714667468214,-434.93935768,0.00036438,7]
[325259385,1714667468223,-499.79557476,0.00036438,7]
[325259386,1714667468232,-1300.53,0.00036438,7]
[325259387,1714667468242,-1471.17,0.00036438,7]
[325259388,1714667468252,-500.0,0.00036438,7]
[325259389,1714667468264,-1859.71,0.00036438,7]
[325259390,1714667468273,-500.0,0.00036438,7]
[325259391,1714667468282,-500.0,0.00036438,7]
[325259392,1714667468291,-500.0,0.00036438,7]
[325259393,1714667468301,-500.0,0.00036438,7]
[325259394,1714667468311,-500.0,0.00036438,7]
[325259395,1714667468320,-500.0,0.00036438,7]
[325259396,1714667468330,-4139.1,0.00036438,7]
[325259397,1714667468341,-500.0,0.00036438,7]
[325259398,1714667468351,-500.0,0.00036438,7]
[325259399,1714667468360,-500.0,0.00036438,7]
[325259400,1714667468370,-500.0,0.00036438,7]
[325259401,1714667468380,-576.36977807,0.00036438,7]
[325259402,1714667468392,-500.0,0.00036438,7]
[325259403,1714667468401,-500.0,0.00036438,7]
[325259404,1714667468411,-500.0,0.00036438,7]
[325259405,1714667468420,-539.90440732,0.00036438,7]
[325259406,1714667468430,-500.0,0.00036438,7]
[325259407,1714667468440,-500.0,0.00036438,7]
[325259408,1714667468449,-1257.46,0.00036438,7]
[325259409,1714667468458,-500.0,0.00036438,7]
[325259410,1714667468468,-496.98800579,0.00036438,7]
[325259411,1714667468478,-500.0,0.00036438,7]
[325259412,1714667468487,-500.0,0.00036438,7]
[325259413,1714667468497,-500.0,0.00036438,7]
[325259414,1714667468506,-500.0,0.00036438,7]
[325259415,1714667468516,-500.0,0.00036438,7]
[325259416,1714667468699,-500.0,0.00036438,7]
[325259417,1714667468710,-500.0,0.00036438,7]
[325259418,1714667468720,-500.0,0.00036438,7]
[325259419,1714667468730,-500.0,0.00036438,7]
[325259420,1714667468741,-500.0,0.00036438,7]
[325259421,1714667468750,-1404.04,0.00036438,7]
[325259422,1714667468760,-500.0,0.00036438,7]
[325259423,1714667468769,-1293.41,0.00036438,7]
[325259424,1714667468779,-546.09449176,0.00036438,7]
[325259425,1714667468789,-500.0,0.00036438,7]
[325259426,1714667468799,-500.99020125,0.00036438,7]
[325259427,1714667468809,-1450.2,0.00036438,7]
[325259428,1714667468818,-3767.45,0.00036438,7]
[325259429,1714667468827,-500.0,0.00036438,120]
[325259430,1714667468836,-500.0,0.00036438,7]
[325259431,1714667468846,-500.0,0.00036438,7]
[325259432,1714667468855,-500.0,0.00036438,7]
[325259433,1714667468865,-500.0,0.00036438,7]
[325259434,1714667468875,-500.0,0.00036438,7]
[325259435,1714667468884,-500.0,0.00036438,7]
[325259436,1714667468896,-500.0,0.00036438,7]
[325259437,1714667468905,-500.0,0.00036438,7]
[325259438,1714667468914,-500.0,0.00036438,7]
[325259439,1714667468924,-1379.09,0.00036438,7]
[325259440,1714667468933,-500.0,0.00036438,7]
[325259441,1714667468942,-500.0,0.00036438,7]
[325259442,1714667468951,-500.0,0.00036438,7]
[325259443,1714667468961,-500.0,0.00036438,7]
[325259444,1714667468970,-500.0,0.00036438,7]
[325259445,1714667468979,-508.73291294,0.00036438,7]
[325259446,1714667468988,-500.0,0.00036438,7]
[325259447,1714667468998,-1119.07,0.00036438,7]
[325259448,1714667469008,-501.8109137,0.00036438,7]
[325259449,1714667469018,-500.0,0.00036438,7]
[325259450,1714667469027,-2571.68,0.00036438,7]
[325259451,1714667469037,-500.0,0.00036438,7]
[325259452,1714667469047,-512.94427774,0.00036438,7]
[325259453,1714667469056,-2318.69,0.00036438,7]
[325259454,1714667469065,-729.13,0.00036438,7]
[325259455,1714667469075,-500.0,0.00036438,7]
[325259456,1714667469084,-500.0,0.00036438,7]
[325259457,1714667469093,-2498.26,0.00036438,7]
[325259458,1714667469103,-3085.18,0.00036438,7]
[325259459,1714667469113,-500.0,0.00036438,7]
[325259460,1714667469122,-500.0,0.00036438,7]
[325259461,1714667469131,-500.0,0.00036438,7]
[325259462,1714667469142,-504.96960321,0.00036438,7]
[325259463,1714667469151,-500.0,0.00036438,7]
[325259464,1714667469161,-1781.61,0.00036438,7]
[325259465,1714667469170,-500.0,0.00036438,7]
[325259466,1714667469180,-1783.61,0.00036438,7]
[325259467,1714667469190,-500.0,0.00036438,7]
[325259468,1714667469200,-903.55,0.00036438,7]
[325259469,1714667469209,-500.0,0.00036438,7]
[325259470,1714667469219,-500.0,0.00036438,7]
[325259471,1714667469230,-505.38892994,0.00036438,7]
[325259472,1714667469239,-500.0,0.00036438,7]
[325259473,1714667469254,-2924.18,0.00036438,7]
[325259474,1714667469264,-500.0,0.00036438,7]
[325259475,1714667469273,-500.0,0.00036438,7]
[325259476,1714667469283,-500.0,0.00036438,7]
[325259477,1714667469295,-599.77386729,0.00036438,7]
[325259478,1714667469304,-749.89,0.00036438,7]
[325259479,1714667469314,-1068.82,0.00036438,7]
[325259480,1714667469323,-500.0,0.00036438,7]
[325259481,1714667469333,-500.0,0.00036438,7]
[325259482,1714667469344,-500.0,0.00036438,7]
[325259483,1714667469353,-500.0,0.00036438,7]
[325259484,1714667469362,-1226.22,0.00036438,7]
[325259485,1714667469372,-500.0,0.00036438,7]
[325259486,1714667469382,-500.0,0.00036438,7]
[325259487,1714667469397,-500.0,0.00036438,7]
[325259488,1714667469406,-500.0,0.00036438,7]
[325259489,1714667469415,-500.0,0.00036438,7]
[325259490,1714667469426,-500.0,0.00036438,7]
[325259491,1714667469436,-500.0,0.00036438,7]
[325259492,1714667469445,-500.0,0.00036438,7]
[325259493,1714667469455,-500.0,0.00036438,7]
[325259494,1714667469465,-500.0,0.00036438,7]
[325259495,1714667469474,-500.0,0.00036438,7]
[325259496,1714667469483,-2660.92,0.00036438,7]
[325259497,1714667469493,-1381.31,0.00036438,7]
[325259498,1714667469503,-500.0,0.00036438,7]
[325259499,1714667469513,-500.0,0.00036438,7]
[325259500,1714667469523,-500.0,0.00036438,7]
[325259501,1714667469532,-50398.91,0.00036438,7]
[325259502,1714667469542,-667.56,0.00036438,7]
[325259503,1714667469553,-500.0,0.00036438,7]
[325259504,1714667469563,-1116.86,0.00036438,7]
[325259505,1714667469573,-531.56,0.00036438,7]
[325259506,1714667469583,-500.0,0.00036438,7]
[325259507,1714667469593,-500.0,0.00036438,7]
[325259508,1714667469602,-500.0,0.00036438,7]
[325259509,1714667469612,-1036.92,0.00036438,7]
[325259510,1714667469621,-925.91,0.00036438,7]
[325259511,1714667469631,-997.71,0.00036438,7]
[325259512,1714667469642,-500.0,0.00036438,7]
[325259513,1714667469652,-500.0,0.00036438,7]
[325259514,1714667469661,-500.0,0.00036438,7]
[325259515,1714667469671,-500.0,0.00036438,7]
[325259516,1714667469681,-500.0,0.00036438,7]
[325259517,1714667469691,-4463.34,0.00036438,7]
[325259518,1714667469700,-3137.54,0.00036438,7]
[325259519,1714667469710,-500.0,0.00036438,7]
[325259520,1714667469719,-500.0,0.00036438,7]
[325259521,1714667469729,-500.0,0.00036438,7]
[325259522,1714667469738,-2072.67,0.00036438,7]
[325259523,1714667469747,-500.0,0.00036438,7]
[325259524,1714667469757,-1417.27,0.00036438,7]
[325259525,1714667469766,-500.0,0.00036438,7]
[325259526,1714667469776,-175.18361913,0.00036438,7]
[325259527,1714667469785,-6545.5,0.00036438,7]
[325259528,1714667469795,-2811.07,0.00036438,7]
[325259529,1714667469804,-500.0,0.00036438,7]
[325259530,1714667469814,-500.0,0.00036438,7]
[325259531,1714667469823,-500.0,0.00036438,7]
[325259532,1714667469833,-500.0,0.00036438,7]
[325259533,1714667469843,-1245.24,0.00036438,7]
[325259534,1714667469852,-1142.08,0.00036438,7]
[325259535,1714667469861,-1012.39,0.00036438,7]
[325259536,1714667469871,-500.0,0.00036438,7]
[325259537,1714667469880,-2173.25,0.00036438,7]
[325259538,1714667469891,-3781.58,0.00036438,7]
[325259539,1714667469900,-500.0,0.00036438,7]
[325259540,1714667469910,-1458.75,0.00036438,7]
[325259541,1714667469920,-500.0,0.00036438,7]
[325259542,1714667469929,-500.0,0.00036438,7]
[325259543,1714667469938,-500.0,0.00036438,7]
[325259544,1714667469947,-500.0,0.00036438,7]
[325259545,1714667469956,-2971.5,0.00036438,7]
[325259546,1714667469966,-500.0,0.00036438,7]
[325259547,1714667469976,-500.0,0.00036438,7]
[325259548,1714667469985,-24466.74,0.00036438,7]
[325259549,1714667469994,-500.48238422,0.00036438,7]
[325259550,1714667470005,-37177.17,0.00036438,7]
[325259551,1714667470015,-500.0,0.00036438,7]
[325259552,1714667470025,-514.49610923,0.00036438,7]
[325259553,1714667470034,-500.0,0.00036438,7]
[325259554,1714667470044,-500.0,0.00036438,7]
[325259555,1714667470054,-4425.86,0.00036438,7]
[325259556,1714667470064,-500.0,0.00036438,7]
[325259557,1714667470073,-500.0,0.00036438,7]
[325259558,1714667470083,-500.0,0.00036438,7]
[325259559,1714667470093,-3237.09,0.00036438,7]
[325259560,1714667470102,-2991.99,0.00036438,7]
[325259561,1714667470112,-500.0,0.00036438,7]
[325259562,1714667470121,-1173.21,0.00036438,7]
[325259563,1714667470131,-1483.09,0.00036438,7]
[325259564,1714667470143,-500.0,0.00036438,7]
[325259565,1714667470152,-6926.68,0.00036438,7]
[325259566,1714667470160,-500.0,0.00036438,7]
[325259567,1714667470170,-500.0,0.00036438,7]
[325259568,1714667470179,-500.0,0.00036438,7]
[325259569,1714667470188,-500.0,0.00036438,7]
[325259570,1714667470197,-609.90746532,0.00036438,7]
[325259571,1714667470206,-1100.61,0.00036438,7]
[325259572,1714667470216,-500.0,0.00036438,7]
[325259573,1714667470224,-2936.94,0.00036438,7]
[325259574,1714667470234,-3188.98,0.00036438,7]
[325259575,1714667470245,-500.0,0.00036438,7]
[325259576,1714667470259,-500.0,0.00036438,7]
[325259577,1714667470269,-500.0,0.00036438,7]
[325259578,1714667470278,-1962.65,0.00036438,7]
[325259579,1714667470287,-517.24,0.00036438,7]
[325259580,1714667470298,-500.0,0.00036438,7]
[325259581,1714667470308,-670.38,0.00036438,7]
[325259582,1714667470318,-5820.24,0.00036438,7]
[325259583,1714667470327,-613.01645185,0.00036438,7]
[325259584,1714667470338,-500.0,0.00036438,7]
[325259585,1714667470348,-757.2,0.00036438,7]
[325259586,1714667470357,-500.0,0.00036438,7]
[325259587,1714667470366,-500.0,0.00036438,7]
[325259588,1714667470376,-1276.37,0.00036438,7]
[325259589,1714667470385,-500.0,0.00036438,7]
[325259590,1714667470398,-1600.22,0.00036438,7]
[325259591,1714667470407,-500.0,0.00036438,7]
[325259592,1714667470417,-3340.3,0.00036438,7]
[325259593,1714667470427,-1297.5,0.00036438,7]
[325259594,1714667470436,-1115.68,0.00036438,7]
[325259595,1714667470446,-10406.43,0.00036438,7]
[325259596,1714667470455,-1222.58,0.00036438,7]
[325259597,1714667470465,-500.0,0.00036438,7]
[325259598,1714667470475,-500.0,0.00036438,7]
[325259599,1714667470484,-4010.7,0.00036438,7]
[325259600,1714667470494,-675.28,0.00036438,7]
[325259601,1714667470504,-500.0,0.00036438,7]
[325259602,1714667470513,-1696.63,0.00036438,7]
[325259603,1714667470523,-500.0,0.00036438,7]
[325259604,1714667470533,-500.0,0.00036438,7]
[325259605,1714667470543,-1874.01,0.00036438,7]
[325259606,1714667470552,-17764.35,0.00036438,7]
[325259607,1714667470562,-500.0,0.00036438,7]
[325259608,1714667470571,-859.19,0.00036438,7]
[325259609,1714667470581,-1636.2,0.00036438,7]
[325259610,1714667470590,-1051.27,0.00036438,7]
[325259611,1714667470600,-24735.04,0.00036438,7]
[325259612,1714667470609,-500.0,0.00036438,7]
[325259613,1714667470619,-1252.7,0.00036438,7]
[325259614,1714667470628,-4081.85,0.00036438,7]
[325259615,1714667470641,-500.0,0.00036438,7]
[325259616,1714667470651,-500.0,0.00036438,7]
[325259617,1714667470660,-500.0,0.00036438,7]
[325259618,1714667470670,-500.0,0.00036438,7]
[325259619,1714667470679,-500.0,0.00036438,7]
[325259620,1714667470689,-2140.2,0.00036438,7]
[325259621,1714667470699,-1211.07,0.00036438,7]
[325259622,1714667470708,-500.0,0.00036438,7]
[325259623,1714667470718,-500.0,0.00036438,7]
[325259624,1714667470727,-500.0,0.00036438,7]
[325259625,1714667470738,-500.0,0.00036438,7]
[325259626,1714667470747,-500.0,0.00036438,7]
[325259627,1714667470757,-500.0,0.00036438,7]
[325259628,1714667470767,-2379.85,0.00036438,7]
[325259629,1714667470778,-2143.33,0.00036438,7]
[325259630,1714667470788,-500.0,0.00036438,7]
[325259631,1714667470797,-500.0,0.00036438,7]
[325259632,1714667470806,-500.0,0.00036438,7]
[325259633,1714667470816,-500.0,0.00036438,7]
[325259634,1714667470826,-500.0,0.00036438,7]
[325259635,1714667470836,-500.0,0.00036438,7]
[325259636,1714667470846,-4341.14,0.00036438,7]
[325259637,1714667470856,-500.0,0.00036438,7]
[325259638,1714667470865,-500.0,0.00036438,7]
[325259639,1714667470875,-2278.47,0.00036438,7]
[325259640,1714667470885,-1214.51,0.00036438,7]
[325259641,1714667470897,-500.0,0.00036438,7]
[325259642,1714667470907,-1023.63,0.00036438,7]
[325259643,1714667470916,-500.13,0.00036438,7]
[325259644,1714667470926,-500.0,0.00036438,7]
[325259645,1714667470936,-500.0,0.00036438,7]
[325259646,1714667470946,-500.0,0.00036438,7]
[325259647,1714667470956,-500.0,0.00036438,7]
[325259648,1714667470965,-500.0,0.00036438,7]
[325259649,1714667470975,-1704.08,0.00036438,7]
[325259650,1714667470985,-500.0,0.00036438,7]
[325259651,1714667470995,-500.0,0.00036438,7]
[325259652,1714667471006,-1143.11,0.00036438,7]
[325259653,1714667471016,-2721.25,0.00036438,7]
[325259654,1714667471026,-500.0,0.00036438,7]
[325259655,1714667471036,-500.0,0.00036438,2]
[325259656,1714667471046,-500.0,0.00036438,7]
[325259657,1714667471055,-500.0,0.00036438,7]
[325259658,1714667471064,-1949.74,0.00036438,7]
[325259659,1714667471073,-500.0,0.00036438,7]
[325259660,1714667471082,-500.0,0.00036438,7]
[325259661,1714667471092,-500.0,0.00036438,7]
[325259662,1714667471101,-5759.55,0.00036438,7]
[325259663,1714667471110,-500.0,0.00036438,7]
[325259664,1714667471120,-505.43,0.00036438,7]
[325259665,1714667471291,-1625.31,0.00036438,7]
[325259666,1714667471302,-500.0,0.00036438,7]
[325259667,1714667471312,-500.0,0.00036438,7]
[325259668,1714667471321,-8735.44,0.00036438,7]
[325259669,1714667471331,-500.0,0.00036438,7]
[325259670,1714667471341,-3753.15,0.00036438,7]
[325259671,1714667471351,-500.0,0.00036438,7]
[325259672,1714667471360,-3984.23,0.00036438,7]
[325259673,1714667471370,-8648.17,0.00036438,7]
[325259674,1714667471380,-4469.72,0.00036438,7]
[325259675,1714667471391,-500.0,0.00036438,7]
[325259676,1714667471401,-500.0,0.00036438,7]
[325259677,1714667471410,-500.0,0.00036438,7]
[325259678,1714667471420,-3732.49,0.00036438,7]
[325259679,1714667471430,-19076.62,0.00036438,7]
[325259680,1714667471440,-2487.88,0.00036438,7]
[325259681,1714667471450,-500.0,0.00036438,7]
[325259682,1714667471459,-3421.27,0.00036438,7]
[325259683,1714667471469,-500.0,0.00036438,7]
[325259684,1714667471478,-1915.66,0.00036438,7]
[325259685,1714667471488,-500.0,0.00036438,7]
[325259686,1714667471497,-500.0,0.00036438,7]
[325259687,1714667471507,-465.05650362,0.00036438,7]
[325259688,1714667471516,-500.0,0.00036438,7]
[325259689,1714667471525,-500.0,0.00036438,7]
[325259690,1714667471535,-4646.14,0.00036438,7]
[325259691,1714667471545,-2114.83,0.00036438,7]
[325259692,1714667471554,-941.51,0.00036438,7]
[325259693,1714667471564,-500.0,0.00036438,7]
[325259694,1714667471573,-7658.48,0.00036438,7]
[325259695,1714667471583,-2426.36,0.00036438,7]
[325259696,1714667471593,-500.0,0.00036438,7]
[325259697,1714667471602,-16953.06,0.00036438,7]
[325259698,1714667471612,-500.0,0.00036438,7]
[325259699,1714667471622,-500.0,0.00036438,7]
[325259700,1714667471632,-554.48,0.00036438,7]
[325259701,1714667471648,-505.38792976,0.00036438,7]
[325259702,1714667471657,-6923.65,0.00036438,7]
[325259703,1714667471666,-1340.5,0.00036438,7]
[325259704,1714667471676,-500.0,0.00036438,7]
[325259705,1714667471684,-2329.58,0.00036438,7]
[325259706,1714667471693,-980.46,0.00036438,7]
[325259707,1714667471703,-500.0,0.00036438,7]
[325259708,1714667471713,-182.46368803,0.00036438,7]
[325259709,1714667471721,-5482.68,0.00036438,7]
[325259710,1714667471730,-2064.64,0.00036438,7]
[325259711,1714667471740,-500.0,0.00036438,7]
[325259712,1714667471750,-4385.88,0.00036438,7]
[325259713,1714667471759,-500.0,0.00036438,7]
[325259714,1714667471769,-500.0,0.00036438,7]
[325259715,1714667471778,-1107.59,0.00036438,7]
[325259716,1714667471788,-500.0,0.00036438,7]
[325259717,1714667471797,-562.61,0.00036438,7]
[325259718,1714667471807,-595.78405011,0.00036438,7]
[325259719,1714667471817,-2178.69,0.00036438,7]
[325259720,1714667471826,-970.18,0.00036438,7]
[325259721,1714667471836,-645.44,0.00036438,7]
[325259722,1714667471845,-500.0,0.00036438,7]
[325259723,1714667471855,-741.44,0.00036438,7]
[325259724,1714667471864,-500.0,0.00036438,7]
[325259725,1714667471874,-3864.45,0.00036438,7]
[325259726,1714667471883,-500.0,0.00036438,7]
[325259727,1714667471897,-6949.43,0.00036438,7]
[325259728,1714667471906,-500.0,0.00036438,7]
[325259729,1714667471915,-2176.82,0.00036438,7]
[325259730,1714667471926,-500.0,0.00036438,7]
[325259731,1714667471936,-4950.57,0.00036438,7]